bitfinex/quotes_ETHUSD_20240816
["timestamp","ask_amount","ask_price","bid_price","bid_amount"]
[1723769117209,3.87703,2579.3,2578.7,3.87782]
[1723769117451,3.72697968,2579.1,2578.7,3.87782]
[1723769117742,0.25574159,2579.0,2578.7,3.87782]
[1723769117964,0.25574159,2578.9,2578.7,3.87782]
[1723769118140,0.25574159,2578.8,2578.7,3.87782]
[1723769118846,4.625303,2579.3,2578.7,3.87782]
[1723769119049,3.9827211,2579.2,2578.7,3.87782]
[1723769119223,4.625303,2579.3,2578.7,3.87782]
[1723769119429,0.05135264,2579.1,2578.7,3.87782]
[1723769119639,0.2557392,2579.0,2578.7,3.87782]
[1723769119842,0.2557392,2578.9,2578.8,3.87774]
[1723769120022,0.3070339,2578.9,2578.8,3.87774]
[1723769121148,0.3070339,2578.9,2578.5,3.26658198]
[1723769121449,3.87801,2578.7,2578.2,4.47503995]
[1723769121618,0.6435402,2578.6,2578.2,2.4526]
[1723769121815,0.2557392,2578.5,2578.2,2.4526]
[1723769122019,0.2557392,2578.4,2578.2,2.4526]
[1723769122293,0.2557392,2578.3,2578.2,2.4526]
[1723769122563,0.30672054,2578.3,2578.2,2.4526]
[1723769123458,0.05098134,2578.3,2578.2,2.4526]
[1723769123625,3.87801,2578.7,2578.2,2.4526]
[1723769123821,0.0509938,2578.3,2578.2,2.4526]
[1723769124018,3.87801,2578.7,2578.2,2.4526]
[1723769124212,0.05099573,2578.3,2578.2,2.4526]
[1723769124430,3.87801,2578.7,2578.2,2.4526]
[1723769124631,0.05099573,2578.3,2578.2,2.4526]
[1723769124833,5.02633068,2578.7,2578.2,2.4526]
[1723769124834,5.02633068,2578.7,2578.2,6.33127]
[1723769125042,0.05099573,2578.3,2578.2,10.20994]
[1723769125257,13.47659683,2579.0,2578.5,3.87814]
[1723769125258,9.7491,2579.0,2578.5,3.87814]
[1723769125534,0.25576365,2578.9,2578.6,35.0]
[1723769125759,0.25576365,2578.8,2578.6,35.0]
[1723769126053,0.25576365,2578.7,2578.6,35.0]
[1723769126429,0.25576365,2579.0,2578.6,35.0]
[1723769126754,0.25576365,2578.9,2578.6,35.0]
[1723769126956,4.13354365,2578.8,2578.6,35.0]
[1723769127140,0.25576365,2578.7,2578.6,35.0]
[1723769127344,0.91217802,2578.7,2578.6,35.0]
[1723769128222,0.25576365,2578.7,2578.6,35.0]
[1723769131356,0.25576365,2578.8,2578.6,35.0]
[1723769131661,0.2557775,2578.7,2578.6,35.0]
[1723769131865,3.87763,2578.9,2578.6,35.0]
[1723769132032,0.2557798,2578.8,2578.6,35.0]
[1723769132236,3.87763,2578.9,2578.6,35.0]
[1723769132237,0.2557798,2578.7,2578.6,35.0]
[1723769133035,0.2557798,2578.8,2578.6,35.0]
[1723769133358,0.2557798,2578.7,2578.6,35.0]
[1723769133751,0.2557798,2578.8,2578.6,35.0]
[1723769133936,0.2557798,2578.7,2578.6,35.0]
[1723769134459,2.64934579,2578.7,2578.6,35.0]
[1723769134660,0.30494579,2578.7,2578.6,35.0]
[1723769139271,0.30494579,2578.7,2578.6,41.34817]
[1723769139656,0.30494579,2578.7,2578.6,37.4701]
[1723769139859,0.30494579,2578.7,2578.6,35.0]
[1723769141637,0.30494579,2578.7,2578.6,37.3548]
[1723769144159,0.04916599,2578.7,2578.6,37.3548]
[1723769144364,0.30492948,2578.7,2578.6,37.3548]
[1723769144880,0.30493011,2578.7,2578.6,37.3548]
[1723769145639,0.30493011,2578.7,2578.6,35.0]
[1723769148056,0.30493101,2578.7,2578.6,35.0]
[1723769150674,6.32684408,2578.7,2578.1,3.17958198]
[1723769150875,6.32684408,2578.7,2577.9,2.3713]
[1723769150876,3.87837,2578.4,2577.9,2.3713]
[1723769151184,0.30366577,2578.3,2578.0,35.0]
[1723769151406,0.25576502,2578.2,2578.0,35.0]
[1723769151552,7.80504075,2578.3,2578.0,35.0]
[1723769151553,0.25576502,2578.1,2578.0,35.0]
[1723769151750,0.3036465,2578.1,2578.0,35.0]
[1723769152865,0.04788148,2578.1,2578.0,35.0]
[1723769153067,0.25585924,2578.1,2578.0,35.0]
[1723769153366,0.30366855,2578.1,2578.0,35.0]
[1723769157360,0.04780931,2578.1,2578.0,35.0]
[1723769157561,0.30366891,2578.1,2578.0,35.0]
[1723769157778,0.2558596,2578.1,2578.0,35.0]
[1723769157988,0.30352459,2578.1,2578.0,35.0]
[1723769158895,0.30351007,2578.1,2578.0,35.0]
[1723769160682,6.47693007,2578.1,2578.0,35.0]
[1723769160997,6.86877791,2578.1,2578.0,35.0]
[1723769161195,11.00351503,2578.1,2578.0,35.0]
[1723769161418,3.87949,2577.7,2577.2,0.80828198]
[1723769161614,3.87981,2577.5,2577.3,1.34892444]
[1723769161896,3.87981,2577.5,2577.2,2.02335834]
[1723769161897,3.87981,2577.5,2577.4,35.0]
[1723769162076,4.13578393,2577.5,2577.4,35.0]
[1723769162597,0.25597393,2577.5,2577.4,35.0]
[1723769163364,3.87958,2577.6,2577.4,35.0]
[1723769164516,0.04717959,2577.5,2577.4,35.0]
[1723769165494,3.87903,2578.0,2577.4,35.0]
[1723769165695,0.30315992,2577.9,2577.4,35.0]
[1723769165898,0.2559291,2577.8,2577.4,38.87987]
[1723769166101,0.0471803,2577.7,2577.4,38.87987]
[1723769166281,3.87903,2578.0,2577.5,3.87972]
[1723769166482,0.30315972,2577.9,2577.6,3.87956]
[1723769166797,0.30315972,2577.9,2577.5,3.87972]
[1723769166798,0.04723829,2577.9,2577.5,3.87972]
[1723769167100,3.87905,2578.0,2577.7,35.0]
[1723769167398,0.30318043,2577.9,2577.7,35.0]
[1723769167589,0.0472632,2577.9,2577.7,35.0]
[1723769169884,3.9264132,2577.9,2577.7,35.0]
[1723769170123,4.13518898,2577.8,2577.7,35.0]
[1723769170276,4.1824157,2577.8,2577.7,35.0]
[1723769173025,3.92649672,2577.8,2577.7,35.0]
[1723769173372,4.18241779,2577.8,2577.7,35.0]
[1723769173798,3.92649672,2577.8,2577.7,35.0]
[1723769174001,4.18241631,2577.8,2577.7,35.0]
[1723769175183,4.98857994,2577.8,2577.7,35.0]
[1723769177323,4.18241631,2577.8,2577.7,35.0]
[1723769178311,3.92649672,2577.8,2577.7,35.0]
[1723769178515,4.18241698,2577.8,2577.7,35.0]
[1723769179025,0.30314698,2577.8,2577.7,37.4383]
[1723769179330,0.04722672,2577.8,2577.7,41.31772]
[1723769179527,3.8786,2578.3,2577.7,41.31772]
[1723769179729,0.30275576,2578.2,2577.7,41.31772]
[1723769180028,0.25585895,2578.1,2577.8,3.87927]
[1723769180227,0.25585895,2578.1,2577.8,3.87919]
[1723769180401,0.04686126,2578.0,2577.9,6.31729]
[1723769180590,0.04686126,2578.0,2577.9,37.4383]
[1723769180797,0.25584755,2578.0,2577.9,37.4383]
[1723769181004,0.04691108,2578.0,2577.9,37.4383]
[1723769181304,0.25584755,2578.1,2577.9,37.4383]
[1723769181498,0.30282338,2578.0,2577.9,37.4383]
[1723769181701,0.30282338,2578.0,2577.9,35.0]
[1723769182801,4.18181994,2578.0,2577.9,35.0]
[1723769183130,4.98788793,2578.0,2577.9,35.0]
[1723769184638,0.30284994,2578.0,2577.9,35.0]
[1723769186623,0.04697583,2578.0,2577.9,35.0]
[1723769186845,0.30287348,2578.0,2577.9,35.0]
[1723769187857,0.30285402,2578.0,2577.9,35.0]
[1723769189041,0.30285402,2578.0,2577.6,2.4412]
[1723769189358,3.8795,2577.7,2577.3,2.4412]
[1723769189531,0.25587819,2577.6,2577.4,35.0]
[1723769189866,0.25587819,2577.5,2577.4,35.0]
[1723769190356,0.30279372,2577.5,2577.4,35.0]
[1723769190867,0.04691553,2577.5,2577.4,35.0]
[1723769191169,0.25594211,2577.5,2577.4,35.0]
[1723769191373,0.30275549,2577.5,2577.4,35.0]
[1723769192248,0.30275549,2577.5,2577.4,38.87987]
[1723769192426,0.30273326,2577.5,2577.4,38.87987]
[1723769192623,0.04681338,2577.5,2577.4,38.87987]
[1723769192823,0.30273646,2577.5,2577.4,38.87987]
[1723769193029,0.25592308,2577.5,2577.4,38.87987]
[1723769193342,0.30274895,2577.5,2577.4,38.87987]
[1723769195269,0.30273723,2577.5,2577.4,40.22867928]
[1723769195677,0.30273723,2577.5,2577.4,36.34880928]
[1723769195678,0.04682587,2577.5,2577.4,36.34880928]
[1723769195835,0.25590994,2577.7,2577.4,36.34880089]
[1723769196170,0.30109194,2577.6,2577.4,35.0]
[1723769196368,0.25590994,2577.5,2577.4,38.87987]
[1723769196670,0.25590994,2577.5,2577.4,42.25186983]
[1723769196840,0.30044627,2577.5,2577.4,42.25186983]
[1723769197834,0.30044158,2577.5,2577.4,42.25186983]
[1723769198459,0.30044158,2577.5,2577.4,42.2518442]
[1723769198839,3.72843137,2578.1,2577.4,39.65537206]
[1723769199138,0.30061012,2578.0,2577.7,3.87939]
[1723769199332,0.30061012,2578.0,2577.8,3.87927]
[1723769199333,0.2558989,2577.9,2577.8,3.87927]
[1723769199538,0.3005886,2577.9,2577.8,3.87927]
[1723769199785,0.3005886,2577.9,2577.8,38.87927]
[1723769200069,0.30055462,2577.9,2577.8,38.87927]
[1723769200670,0.30055462,2577.9,2577.8,42.56762909]
[1723769200966,0.30054147,2577.9,2577.8,42.56762909]
[1723769201165,0.30054147,2577.9,2577.8,41.21897]
[1723769201472,0.0446897,2577.9,2577.8,45.09824]
[1723769201673,19.62,2578.4,2578.2,6.23285]
[1723769201879,3.87799,2578.7,2578.2,6.23285]
[1723769202097,4.13388494,2578.6,2578.2,2.3542]
[1723769202374,4.73993338,2578.7,2577.9,0.8096937]
[1723769202375,3.98346032,2578.5,2577.9,3.8791]
[1723769202597,0.25581494,2578.4,2578.0,1.34851777]
[1723769202748,0.25581494,2578.3,2577.9,3.8791]
[1723769203088,0.25580987,2578.2,2578.0,11.12903383]
[1723769203253,3.87801,2578.7,2578.1,3.8788]
[1723769203453,0.25580227,2578.6,2578.1,3.8788]
[1723769203683,0.25580227,2578.5,2578.1,3.8788]
[1723769203854,0.25580227,2578.4,2578.1,3.8788]
[1723769204046,0.25580227,2578.3,2578.1,3.8788]
[1723769204246,3.87807,2578.6,2578.1,3.8788]
[1723769204465,0.25582157,2578.5,2578.1,3.8788]
[1723769204664,0.25582157,2578.4,2578.1,3.8788]
[1723769204994,0.25582157,2578.3,2578.1,3.8788]
[1723769205194,3.87807,2578.6,2578.1,3.8788]
[1723769205195,0.25582157,2578.2,2578.1,3.8788]
[1723769205368,0.25582157,2578.2,2578.1,5.22730003]
[1723769205697,0.25580044,2578.2,2578.1,3.8788]
[1723769205896,0.25580044,2578.5,2578.1,3.8788]
[1723769206100,0.25580044,2578.4,2578.1,3.8788]
[1723769206253,0.25580044,2578.3,2578.1,3.8788]
[1723769206583,0.25580044,2578.2,2578.1,3.8788]
[1723769206750,0.25580044,2578.2,2577.9,3.87902]
[1723769206945,0.25585438,2578.1,2578.0,3.87897]
[1723769207149,3.87813,2578.6,2578.1,3.87878]
[1723769207358,0.25582113,2578.5,2578.1,3.87874]
[1723769207548,0.25582113,2578.4,2578.1,3.87874]
[1723769207749,0.25582113,2578.3,2578.1,3.87874]
[1723769207951,9.97256324,2578.8,2578.1,3.87874]
[1723769207952,0.25582113,2578.2,2578.1,9.7802523]
[1723769208157,7.44,2579.0,2578.3,3.8785]
[1723769208386,0.25573526,2578.9,2578.5,3.87818]
[1723769208687,0.25573526,2578.8,2578.5,3.87818]
[1723769208910,3.87747,2579.0,2578.5,3.87818]
[1723769209200,0.03945738,2578.7,2578.6,3.87806]
[1723769209412,7.44,2579.4,2578.9,2.354]
[1723769209571,0.25567069,2579.3,2579.0,3.8774]
[1723769209771,0.25567069,2579.2,2579.1,35.0]
[1723769209969,0.29411632,2579.2,2579.1,38.87732]
[1723769210204,0.03844563,2579.2,2579.1,45.58375588]
[1723769210375,0.03844563,2579.2,2579.1,53.63930119]
[1723769210580,7.44,2579.8,2579.7,6.25001]
[1723769210781,11.31543,2580.4,2579.7,6.24987]
[1723769210979,0.255535,2580.3,2579.8,3.87617]
[1723769212106,0.255535,2580.3,2579.7,10.12618]
[1723769212309,7.44,2580.4,2579.9,3.87602]
[1723769212871,8.85857944,2580.4,2579.9,3.87602]
[1723769213803,12.73395944,2580.4,2579.9,3.87602]
[1723769214190,12.73395944,2580.4,2579.7,10.12616]
[1723769215475,16.60943944,2580.4,2579.7,10.12616]
[1723769215995,12.73395944,2580.4,2579.7,10.12616]
[1723769217011,12.73395944,2580.4,2579.8,3.87624]
[1723769217870,12.73395944,2580.4,2579.9,35.0]
[1723769218807,11.31538,2580.4,2579.9,38.87607]
[1723769219006,7.44,2580.4,2579.9,38.87607]
[1723769219508,0.1017832,2580.7,2580.5,3.87511]
[1723769219832,0.1017832,2580.7,2580.6,3.87506]
[1723769220195,0.1017832,2580.7,2580.4,7.75059]
[1723769220378,0.1017832,2580.7,2580.4,3.87525]
[1723769220677,0.1017832,2580.7,2580.5,3.87508]
[1723769221273,0.1017832,2580.7,2580.6,3.87506]
[1723769221688,0.1017832,2580.7,2580.6,7.75012]
[1723769223222,0.1017832,2580.7,2580.6,42.75012]
[1723769224275,0.13982066,2580.7,2580.6,42.75012]
[1723769224719,0.1017832,2580.7,2580.6,42.75012]
[1723769225087,0.1017832,2580.7,2580.6,46.62518]
[1723769227397,0.1017832,2580.7,2580.6,42.75012]
[1723769229833,0.1017832,2580.7,2580.6,46.62518]
[1723769230027,0.1017832,2580.7,2580.6,49.55089588]
[1723769230634,0.00261144,2580.7,2580.6,49.55089588]
[1723769230989,0.00261144,2580.7,2580.6,53.97595588]
[1723769231288,13.595,2581.9,2581.4,3.87379]
[1723769231510,0.03658189,2581.8,2581.4,7.74756]
[1723769231725,0.03658189,2581.8,2581.4,7.74755]
[1723769231926,0.03658189,2581.8,2581.4,3.87377]
[1723769232125,0.03658189,2581.8,2581.5,3.87371]
[1723769232494,0.03658189,2581.8,2581.7,3.87341]
[1723769232804,3.9960544,2583.2,2582.4,3.87236]
[1723769233004,3.9960544,2583.2,2582.4,35.0]
[1723769233005,0.1247944,2583.2,2582.4,35.0]
[1723769233815,3.87155,2583.0,2582.4,38.87236]
[1723769234228,3.87155,2583.0,2582.4,35.0]
[1723769234431,3.87196,2582.7,2582.4,35.0]
[1723769234596,2.2611,2582.8,2582.4,35.0]
[1723769234795,2.2611,2583.1,2582.4,38.87236]
[1723769235109,2.2611,2583.1,2582.4,42.74472]
[1723769236029,3.87148,2583.0,2582.4,38.87236]
[1723769236215,2.2611,2583.1,2582.4,35.0]
[1723769236420,2.2611,2583.1,2582.0,2.2556]
[1723769236421,2.3194,2582.6,2581.4,2.2697]
[1723769236619,7.74545,2582.2,2581.6,3.87346]
[1723769236797,6.1923,2582.1,2581.7,35.0]
[1723769237000,2.3194,2582.1,2581.7,35.0]
[1723769238301,2.3194,2582.1,2581.2,3.87409]
[1723769238302,4.105,2582.0,2581.2,3.87409]
[1723769238499,2.4125,2581.7,2581.0,3.87443]
[1723769238733,2.4125,2581.7,2581.1,35.0]
[1723769238734,3.87373,2581.5,2581.1,35.0]
[1723769239034,0.0350557,2581.4,2581.1,35.0]
[1723769239396,3.87371,2581.6,2581.1,35.0]
[1723769239601,0.03508462,2581.5,2581.1,35.0]
[1723769241525,0.03508462,2581.5,2581.2,3.87416]
[1723769241841,2.4125,2581.7,2581.2,3.87416]
[1723769241842,0.03478736,2581.4,2581.2,3.87416]
[1723769242012,0.00089269,2581.4,2581.3,3.87401]
[1723769242218,7.44,2581.9,2581.5,3.87367]
[1723769242414,7.44,2581.9,2581.7,3.87339]
[1723769242608,7.74547,2582.2,2581.6,3.87355]
[1723769242934,5.630477,2582.2,2581.6,3.87355]
[1723769243204,13.70463,2582.4,2581.7,3.87335]
[1723769243343,9.8322,2582.4,2581.9,3.87311]
[1723769243557,9.8322,2582.4,2582.1,3.87279]
[1723769243711,7.44,2582.4,2582.1,3.87279]
[1723769244119,7.44,2582.4,2582.1,3.87272]
[1723769244431,7.44,2582.4,2582.2,3.87265]
[1723769245034,0.1499,2582.5,2582.3,3.87249]
[1723769245219,0.1499,2582.5,2582.2,3.87264]
[1723769245620,0.1499,2582.5,2582.3,3.87247]
[1723769246653,0.1499,2582.5,2582.3,3.87239]
[1723769247021,0.1499,2582.5,2582.1,3.87271]
[1723769247348,0.1499,2582.5,2582.2,3.87256]
[1723769247660,0.1499,2582.5,2582.3,3.87245]
[1723769248165,0.1499,2582.5,2582.1,3.87268]
[1723769248356,0.1499,2582.5,2582.1,7.74541]
[1723769248649,0.1499,2582.5,2582.1,3.87268]
[1723769249354,0.1499,2582.5,2582.2,3.87265]
[1723769249556,0.1499,2582.5,2582.1,3.87268]
[1723769250434,0.1499,2582.5,2582.2,3.87265]
[1723769250629,0.1499,2582.5,2582.1,3.87268]
[1723769251141,0.1499,2582.5,2582.1,7.7454]
[1723769251454,0.1499,2582.5,2582.1,3.87268]
[1723769252040,6.19165,2582.4,2581.9,3.87302]
[1723769252430,0.25460296,2582.3,2581.7,3.87332]
[1723769253054,0.25460296,2582.3,2581.8,3.87326]
[1723769253434,0.25460296,2582.3,2581.7,3.87332]
[1723769253648,3.87267,2582.2,2581.7,3.87332]
[1723769254026,0.25461606,2582.1,2581.7,3.87332]
[1723769255427,3.87267,2582.2,2581.7,3.87332]
[1723769255726,0.25461279,2582.1,2581.7,3.87332]
[1723769255926,3.87267,2582.2,2581.7,3.87332]
[1723769256149,0.25461196,2582.1,2581.7,3.87332]
[1723769257132,0.25461196,2582.1,2581.8,35.0]
[1723769257432,4.12748196,2582.1,2581.8,35.0]
[1723769257642,0.25461196,2582.0,2581.8,35.0]
[1723769257842,4.12760196,2582.0,2581.8,35.0]
[1723769258045,3.87351,2581.7,2581.1,3.8742]
[1723769258364,0.64196296,2581.6,2581.1,3.8742]
[1723769258563,0.25461196,2581.5,2581.2,35.0]
[1723769258882,3.87349,2581.7,2581.2,35.0]
[1723769259178,0.25471177,2581.6,2581.2,35.0]
[1723769259325,6.1247,2581.9,2581.2,35.0]
[1723769259326,6.1247,2581.9,2581.3,3.874]
[1723769259530,4.12793311,2581.8,2581.3,3.874]
[1723769259831,0.25467642,2581.7,2581.3,3.874]
[1723769260029,0.25467642,2581.7,2581.4,35.0]
[1723769260242,3.87326,2581.8,2581.4,35.0]
[1723769260436,0.25466977,2581.7,2581.4,35.0]
[1723769260637,3.87311,2581.9,2581.4,37.4755]
[1723769260858,0.25466379,2581.8,2581.4,37.4755]
[1723769261261,3.87342,2581.7,2581.4,35.0]
[1723769261766,7.74635,2581.9,2581.4,35.0]
[1723769261961,0.25465817,2581.8,2581.4,35.0]
[1723769262160,4.12793817,2581.8,2581.4,35.0]
[1723769262368,3.87328,2581.8,2581.4,35.0]
[1723769262566,0.25465907,2581.7,2581.4,35.0]
[1723769264091,4.12808907,2581.7,2581.4,35.0]
[1723769264365,0.25465907,2581.6,2581.4,35.0]
[1723769266698,3.87403,2581.3,2580.8,2.4005]
[1723769266840,0.25473363,2581.2,2580.7,3.87488]
[1723769267165,0.25473363,2581.2,2580.8,35.0]
[1723769267166,3.87432,2581.1,2580.8,35.0]
[1723769267468,6.13283,2581.3,2580.8,35.0]
[1723769267469,0.25479425,2581.0,2580.8,35.0]
[1723769267667,6.13283,2581.3,2580.8,35.0]
[1723769267668,3.87419,2581.2,2580.8,35.0]
[1723769267845,0.25478304,2581.1,2580.8,35.0]
[1723769268046,6.13283,2581.3,2580.8,35.0]
[1723769268370,0.25476869,2581.2,2580.8,35.0]
[1723769268757,10.00694,2581.3,2580.8,35.0]
[1723769269075,0.25476853,2581.2,2580.8,35.0]
[1723769269571,3.87461,2580.9,2580.8,35.0]
[1723769269774,4.12942161,2580.9,2580.8,35.0]
[1723769270268,3.87461,2580.9,2580.8,35.0]
[1723769270475,3.87432,2581.1,2580.8,35.0]
[1723769271172,0.25479457,2581.0,2580.8,35.0]
[1723769271377,6.13289,2581.3,2580.8,35.0]
[1723769271667,3.87441,2581.1,2580.8,35.0]
[1723769272559,3.8744,2581.1,2580.8,35.0]
[1723769273365,3.8741,2581.3,2580.8,37.4554]
[1723769273539,7.74821,2581.3,2580.8,37.4554]
[1723769273736,9.919,2581.6,2580.8,41.33006]
[1723769273737,7.44,2581.6,2580.8,41.33006]
[1723769273938,0.25474415,2581.5,2581.0,3.87438]
[1723769274148,7.44,2581.6,2581.2,3.87408]
[1723769274641,7.44,2581.6,2581.4,3.87386]
[1723769274846,13.79188,2582.1,2581.4,3.87377]
[1723769275056,4.12765155,2582.0,2581.6,2.4554]
[1723769275251,0.25468155,2581.9,2581.3,2.4554]
[1723769275453,3.87381,2581.5,2580.8,35.0]
[1723769275679,3.87412,2581.3,2580.8,35.0]
[1723769275880,3.12112702,2581.4,2580.8,35.0]
[1723769275881,3.87416,2581.2,2580.8,35.0]
[1723769276267,2.479,2581.4,2580.8,35.0]
[1723769276581,3.87417,2581.2,2580.8,35.0]
[1723769277485,4.12915265,2581.1,2580.8,35.0]
[1723769277779,4.896979,2581.2,2580.8,35.0]
[1723769278486,0.25478114,2581.1,2580.8,35.0]
[1723769278681,3.87455,2581.0,2580.8,35.0]
[1723769279279,4.6118479,2581.2,2580.8,35.0]
[1723769279479,0.25478285,2581.1,2580.8,35.0]
[1723769279683,4.12910285,2581.1,2580.8,35.0]
[1723769279981,3.87432,2581.1,2580.8,35.0]
[1723769280143,3.87446,2581.0,2580.8,35.0]
[1723769280351,3.87425,2581.2,2580.8,35.0]
[1723769281310,3.87448,2581.0,2580.8,35.0]
[1723769281905,3.87448,2581.0,2580.6,2.4554]
[1723769282177,3.87432,2581.1,2580.7,35.0]
[1723769282381,0.25480672,2581.0,2580.7,35.0]
[1723769283478,4.12927672,2581.0,2580.7,35.0]
[1723769283701,3.87447,2581.0,2580.7,35.0]
[1723769283863,0.25480977,2580.9,2580.7,35.0]
[1723769284043,3.87447,2581.0,2580.7,35.0]
[1723769284247,4.12942871,2580.9,2580.7,35.0]
[1723769284453,3.87476,2580.8,2580.7,35.0]
[1723769284654,4.1295982,2580.8,2580.7,35.0]
[1723769284859,8.0043582,2580.8,2580.7,35.0]
[1723769285311,4.1295982,2580.8,2580.7,35.0]
[1723769287716,4.12960545,2580.8,2580.7,35.0]
[1723769288493,0.25484545,2580.8,2580.7,35.0]
[1723769289062,4.12960545,2580.8,2580.7,35.0]
[1723769290692,0.25484545,2580.8,2580.7,35.0]
[1723769292011,0.25481999,2580.8,2580.7,35.0]
[1723769292564,0.25481999,2581.1,2580.6,3.87495]
[1723769292800,0.25481999,2581.0,2580.6,3.87495]
[1723769293001,0.25481999,2580.9,2580.7,35.0]
[1723769293221,3.87433,2581.1,2580.7,35.0]
[1723769293363,0.25418837,2581.0,2580.7,35.0]
[1723769293686,0.25418837,2580.9,2580.7,35.0]
[1723769293874,7.44,2581.2,2580.7,35.0]
[1723769294076,0.25418614,2581.1,2580.7,35.0]
[1723769294271,0.25418614,2581.0,2580.7,35.0]
[1723769294468,0.25418614,2580.9,2580.7,35.0]
[1723769294668,3.87418,2581.2,2580.7,35.0]
[1723769294869,4.12851183,2581.1,2580.7,35.0]
[1723769295102,0.25418183,2581.0,2580.7,35.0]
[1723769295294,0.25418183,2580.9,2580.7,35.0]
[1723769295497,0.25418183,2580.8,2580.7,35.0]
[1723769296081,0.25418183,2581.0,2580.7,35.0]
[1723769296276,0.25418765,2580.9,2580.7,35.0]
[1723769296605,0.25418765,2580.8,2580.7,35.0]
[1723769296800,0.25418765,2581.0,2580.7,35.0]
[1723769296979,0.25418765,2580.9,2580.7,35.0]
[1723769297177,0.25418765,2580.8,2580.7,35.0]
[1723769297488,0.25418765,2581.0,2580.7,35.0]
[1723769297694,0.25418765,2580.9,2580.7,35.0]
[1723769298010,0.25418765,2580.8,2580.7,35.0]
[1723769299277,0.25418765,2581.0,2580.7,35.0]
[1723769299497,0.25418765,2580.9,2580.7,35.0]
[1723769299820,0.25418765,2580.8,2580.7,35.0]
[1723769300743,3.87454,2581.0,2580.7,35.0]
[1723769300895,0.25422562,2580.9,2580.7,35.0]
[1723769301222,3.87454,2581.0,2580.7,35.0]
[1723769301223,0.25422562,2580.8,2580.7,35.0]
[1723769301787,7.59830432,2581.3,2580.7,35.0]
[1723769301788,3.87433,2581.1,2580.7,35.0]
[1723769301992,0.25422562,2581.0,2580.7,35.0]
[1723769302198,0.25422562,2580.9,2580.7,35.0]
[1723769302422,0.25422562,2580.8,2580.7,35.0]
[1723769302833,0.25422562,2581.0,2580.7,35.0]
[1723769303122,3.87476,2580.8,2580.7,35.0]
[1723769303323,4.12898562,2580.8,2580.7,35.0]
[1723769303695,3.87493,2580.7,2580.3,2.4307]
[1723769303897,0.25422562,2580.6,2580.3,2.4307]
[1723769304213,0.25422562,2580.5,2580.4,35.0]
[1723769305088,3.87493,2580.7,2580.4,35.0]
[1723769305288,0.25427195,2580.6,2580.4,35.0]
[1723769305495,0.25427195,2580.5,2580.4,35.0]
[1723769305915,0.25427195,2580.5,2580.4,37.93406588]
[1723769306097,0.25427195,2580.5,2580.4,41.80942588]
[1723769307331,0.25427195,2580.5,2580.4,45.18142]
[1723769307897,7.44,2581.0,2580.5,3.87509]
[1723769308097,0.2542155,2580.9,2580.5,3.87509]
[1723769308329,0.2542155,2580.8,2580.5,3.87509]
[1723769308645,11.16460863,2581.0,2580.5,3.87509]
[1723769308646,0.2542155,2580.7,2580.5,3.87509]
[1723769308839,0.2542155,2580.6,2580.4,37.4307]
[1723769309048,0.2542155,2580.5,2580.4,37.4307]
[1723769309243,0.2542155,2580.5,2580.4,41.30606]
[1723769309699,7.44,2581.0,2580.6,3.87503]
[1723769310040,7.44,2581.0,2580.8,2.4307]
[1723769310221,0.25419722,2580.9,2580.8,2.4307]
[1723769311919,0.25419722,2580.9,2580.8,6.30546]
[1723769313450,0.25419722,2580.9,2580.8,2.4307]
[1723769314051,0.2541887,2580.9,2580.8,37.4307]
[1723769314525,0.2541887,2580.9,2580.8,35.0]
[1723769315844,0.2541887,2580.9,2580.8,38.87476]
[1723769316157,0.2541887,2580.9,2580.8,35.0]
[1723769318415,0.25417892,2580.9,2580.8,35.0]
[1723769318573,0.25417892,2580.9,2580.8,42.74952]
[1723769318880,0.25417892,2580.9,2580.8,46.39539959]
[1723769319218,3.7237968,2581.5,2581.2,2.2787]
[1723769319424,0.25413121,2581.4,2581.2,2.2787]
[1723769319714,0.25413121,2581.3,2581.2,2.2787]
[1723769321026,0.25413121,2581.3,2580.9,6.36801]
[1723769321303,4.12838121,2581.2,2580.8,35.0]
[1723769321480,0.25413121,2581.1,2580.8,35.0]
[1723769321680,0.25413121,2581.0,2580.8,35.0]
[1723769321891,0.25413121,2580.9,2580.8,35.0]
[1723769322107,0.25413121,2580.9,2580.8,36.34709494]
[1723769322505,0.25417232,2580.9,2580.8,36.34709494]
[1723769322872,7.7483,2581.3,2580.8,35.0]
[1723769323173,0.25417704,2580.9,2580.8,35.0]
[1723769323394,0.25417704,2580.9,2580.8,38.3676253]
[1723769323775,0.25417704,2580.9,2580.8,36.34705012]
[1723769324083,0.25417704,2580.9,2580.8,40.22181012]
[1723769324285,0.25417704,2580.9,2580.8,36.34705012]
[1723769324488,0.25417704,2580.9,2580.8,38.36764876]
[1723769324870,0.25417704,2581.2,2580.8,42.24236876]
[1723769325075,0.25417704,2581.1,2580.8,38.87472]
[1723769325275,0.25417704,2581.0,2580.9,1.34703466]
[1723769325502,15.03755037,2581.5,2581.0,2.4673]
[1723769325806,0.25414466,2581.4,2581.0,2.4673]
[1723769326006,0.25414466,2581.3,2581.1,35.0]
[1723769326207,0.25414466,2581.2,2581.1,35.0]
[1723769326791,0.25416544,2581.2,2581.1,35.0]
[1723769328412,9.48842504,2581.5,2581.1,35.0]
[1723769328635,4.12802308,2581.4,2581.1,35.0]
[1723769328934,0.25415308,2581.3,2581.1,35.0]
[1723769329140,0.25415308,2581.2,2581.1,35.0]
[1723769330623,0.25415308,2581.2,2580.9,3.87451]
[1723769330823,0.25415308,2581.1,2580.9,3.87451]
[1723769331125,0.25415308,2581.0,2580.9,3.87451]
[1723769331476,0.25415308,2581.0,2580.9,40.22156061]